bitfinex/quotes_BTCUSD_20250513
["timestamp","ask_amount","ask_price","bid_price","bid_amount"]
[1747119821674,0.04494298,102630.0,102620.0,0.77296703]
[1747119822576,0.04494298,102630.0,102620.0,1.17296703]
[1747119822716,0.0352,102630.0,102620.0,1.17296703]
[1747119823741,0.0193,102630.0,102620.0,1.17296703]
[1747119823960,0.003,102630.0,102620.0,1.17296703]
[1747119824412,0.003,102630.0,102620.0,1.33769694]
[1747119824731,0.003,102630.0,102620.0,1.53412685]
[1747119826191,0.003,102630.0,102620.0,2.50004685]
[1747119826380,0.003,102630.0,102620.0,1.99572685]
[1747119826580,0.003,102630.0,102620.0,1.53412685]
[1747119827819,0.003,102630.0,102620.0,1.54841185]
[1747119850940,0.003,102630.0,102620.0,2.95999985]
[1747119851146,0.003,102630.0,102620.0,2.93006985]
[1747119852212,0.003,102630.0,102620.0,2.83983285]
[1747119852457,0.003,102630.0,102620.0,2.81680085]
[1747119853332,0.003,102630.0,102620.0,3.23776085]
[1747119855663,0.003,102630.0,102620.0,3.40749076]
[1747119856204,0.003,102630.0,102620.0,3.24276085]
[1747119856409,0.002,102630.0,102620.0,3.24276085]
[1747119856867,0.002,102630.0,102620.0,3.24376085]
[1747119857099,0.001,102630.0,102620.0,3.40849076]
[1747119858419,0.001,102650.0,102640.0,0.56408302]
[1747119858633,0.00114594,102650.0,102640.0,1.26055673]
[1747119859217,0.00114594,102650.0,102640.0,1.66055673]
[1747119860416,0.00614594,102650.0,102640.0,1.66055673]
[1747119862800,0.01526021,102650.0,102640.0,1.66055673]
[1747119863635,0.00614594,102650.0,102640.0,1.66055673]
[1747119864397,0.00614594,102650.0,102640.0,1.67509758]
[1747119864604,0.00614594,102650.0,102640.0,1.70749758]
[1747119865250,0.00614594,102650.0,102640.0,1.69129758]
[1747119865523,0.00414594,102650.0,102640.0,1.69129758]
[1747119865703,0.00114594,102650.0,102640.0,1.69129758]
[1747119865866,0.00314594,102650.0,102640.0,1.69129758]
[1747119866564,0.00314594,102650.0,102640.0,1.70679758]
[1747119867515,0.00314594,102650.0,102640.0,1.64189858]
[1747119867690,0.00314594,102650.0,102640.0,1.6711258]
[1747119868307,0.00314594,102650.0,102640.0,2.0920058]
[1747119873011,0.00314594,102650.0,102640.0,2.5194758]
[1747119874374,0.00314594,102650.0,102640.0,2.0920058]
[1747119874579,0.00314594,102650.0,102640.0,3.1439298]
[1747119874580,0.00214594,102650.0,102640.0,3.1439298]
[1747119874777,0.00114594,102650.0,102640.0,3.1439298]
[1747119875098,0.00114594,102650.0,102640.0,3.1449298]
[1747119875823,0.00114594,102650.0,102640.0,3.1139798]
[1747119876031,0.00114594,102650.0,102640.0,3.0321828]
[1747119876708,0.00114594,102650.0,102640.0,2.9118028]
[1747119877113,0.00114594,102650.0,102640.0,2.8046698]
[1747119878589,0.00114594,102650.0,102640.0,2.7141938]
[1747119883939,0.00114594,102650.0,102640.0,2.87892371]
[1747119884131,0.0918,102680.0,102670.0,0.57855839]
[1747119884358,0.0918,102680.0,102670.0,1.1069283]
[1747119884566,0.0918,102680.0,102670.0,1.11058781]
[1747119884673,0.0918,102680.0,102670.0,1.51058781]
[1747119885542,0.0928,102680.0,102670.0,1.51058781]
[1747119885753,0.0938,102680.0,102670.0,1.51058781]
[1747119886160,0.062,102680.0,102670.0,1.70631772]
[1747119886382,0.062,102680.0,102670.0,2.80402472]
[1747119886588,0.062,102680.0,102670.0,2.80036521]
[1747119886800,0.062,102680.0,102670.0,2.3570353]
[1747119887002,0.062,102680.0,102670.0,2.2844953]
[1747119887205,0.062,102680.0,102670.0,2.44922521]
[1747119888949,0.062,102680.0,102670.0,2.40509821]
[1747119889553,0.062,102680.0,102670.0,2.41009821]
[1747119890951,0.062,102680.0,102670.0,1.70765821]
[1747119891159,0.062,102680.0,102670.0,3.37937021]
[1747119893298,0.061,102680.0,102670.0,3.37937021]
[1747119893503,0.061,102680.0,102670.0,3.38137021]
[1747119893874,0.061,102680.0,102670.0,3.54610012]
[1747119894067,0.06,102680.0,102670.0,3.54610012]
[1747119894269,0.00180069,102700.0,102690.0,0.58351477]
[1747119894476,0.00228735,102700.0,102690.0,3.07026559]
[1747119894678,0.00228735,102700.0,102690.0,2.47812359]
[1747119894900,0.00228735,102700.0,102690.0,2.27040559]
[1747119895099,0.00228735,102700.0,102690.0,2.68489992]
[1747119895531,0.00228735,102700.0,102690.0,2.69674566]
[1747119896143,0.00228735,102700.0,102690.0,2.72824566]
[1747119896596,0.00228735,102700.0,102690.0,2.72924566]
[1747119896816,0.00228735,102700.0,102690.0,2.69774566]
[1747119900184,0.00228735,102700.0,102690.0,2.73004566]
[1747119903654,0.00228735,102700.0,102690.0,2.72964566]
[1747119905022,0.0605,102730.0,102720.0,0.57844934]
[1747119905236,0.0605,102730.0,102720.0,1.27170916]
[1747119905415,0.06064593,102730.0,102720.0,1.27170916]
[1747119905883,0.06064593,102730.0,102720.0,1.67170916]
[1747119906098,0.06064593,102730.0,102720.0,1.50697925]
[1747119906316,0.06464593,102730.0,102720.0,1.50697925]
[1747119907001,0.0871132,102730.0,102720.0,0.96871481]
[1747119907202,0.09684717,102730.0,102720.0,0.95222435]
[1747119907409,0.10658123,102730.0,102720.0,0.95222435]
[1747119907624,0.31100048,102730.0,102720.0,0.95222435]
[1747119907835,0.31100124,102730.0,102720.0,0.95222463]
[1747119908048,0.30126699,102730.0,102720.0,0.57844953]
[1747119908284,0.29153349,102730.0,102720.0,0.9230199]
[1747119908500,0.28179943,102730.0,102720.0,0.74089999]
[1747119908703,0.28179905,102730.0,102720.0,0.750635]
[1747119908882,0.2915333,102730.0,102720.0,0.75063519]
[1747119909089,0.2915333,102730.0,102720.0,0.7603702]
[1747119909420,0.2915333,102730.0,102720.0,0.5784502]
[1747119909824,0.2915333,102730.0,102720.0,0.58818511]
[1747119910683,0.2915333,102730.0,102720.0,0.56871519]
[1747119910881,0.28179943,102730.0,102720.0,0.34]
[1747119911091,0.53205713,102730.0,102720.0,0.34]
[1747119911485,0.54112716,102730.0,102720.0,0.34]
[1747119911709,0.29086946,102730.0,102720.0,0.53470404]
[1747119911863,0.29086946,102730.0,102720.0,0.55417415]
[1747119912097,0.30060248,102730.0,102720.0,0.56390916]
[1747119912318,0.30060305,102730.0,102720.0,0.34]
[1747119912521,0.28113521,102730.0,102720.0,0.53470404]
[1747119913260,0.28113521,102730.0,102720.0,0.55417434]
[1747119914036,0.28113521,102730.0,102720.0,0.56390935]
[1747119914671,0.28113521,102730.0,102720.0,0.55417434]
[1747119915666,0.09618342,102730.0,102720.0,0.56390916]
[1747119915878,0.09618342,102730.0,102720.0,0.57364369]
[1747119916084,0.30060257,102730.0,102720.0,0.57364369]
[1747119916358,0.11274593,102730.0,102720.0,0.58818464]
[1747119916558,0.10591739,102730.0,102720.0,0.59791917]
[1747119916987,0.08644955,102730.0,102720.0,0.59791917]
[1747119917201,0.08644936,102730.0,102720.0,0.84817687]
[1747119917377,0.09618295,102730.0,102720.0,0.84817687]
[1747119917586,0.10591673,102730.0,102720.0,0.59791917]
[1747119917804,0.08644936,102730.0,102720.0,0.96267917]
[1747119917958,0.09618295,102730.0,102720.0,0.96267917]
[1747119919368,0.09618295,102730.0,102720.0,1.36267917]
[1747119920423,0.10591673,102730.0,102720.0,1.36267917]
[1747119920623,0.0968466,102730.0,102720.0,1.36267917]
[1747119921922,0.10658047,102730.0,102720.0,1.36267917]
[1747119922441,0.0968466,102730.0,102720.0,0.96267917]
[1747119922962,0.0968466,102730.0,102720.0,1.36267917]
[1747119925154,0.10658047,102730.0,102720.0,1.36267917]
[1747119925376,0.31100047,102730.0,102720.0,1.33347519]
[1747119925630,0.30064324,102730.0,102720.0,0.95294473]
[1747119925782,0.3103774,102730.0,102720.0,0.95294492]
[1747119925997,0.30064372,102730.0,102720.0,0.95294492]
[1747119926359,0.30064372,102730.0,102720.0,0.96267955]
[1747119926871,0.30064372,102730.0,102720.0,0.96267888]
[1747119927392,0.31037797,102730.0,102720.0,0.95294444]
[1747119928227,0.31037797,102730.0,102720.0,0.96267897]
[1747119928768,0.30064372,102730.0,102720.0,0.96267897]
[1747119929539,0.10595863,102730.0,102720.0,0.96267897]
[1747119931549,0.10595863,102730.0,102720.0,0.97532259]
[1747119932895,0.30064372,102730.0,102720.0,0.96558806]
[1747119933139,0.30064372,102730.0,102720.0,0.76371843]
[1747119933340,0.30064372,102730.0,102720.0,0.77345315]
[1747119934388,0.29090956,102730.0,102720.0,0.78318768]
[1747119935077,0.30064372,102730.0,102720.0,0.78318768]
[1747119935289,0.30064372,102730.0,102720.0,0.76371843]
[1747119935471,0.30064372,102730.0,102720.0,0.77345306]
[1747119935614,0.30064372,102730.0,102720.0,0.78318759]
[1747119935817,0.30064372,102730.0,102720.0,0.76371862]
[1747119936031,0.30064372,102730.0,102720.0,0.57655268]
[1747119936502,0.44540552,102730.0,102720.0,0.35264362]
[1747119936990,0.45224473,102730.0,102720.0,0.35264362]
[1747119939065,0.45224473,102730.0,102720.0,0.01264362]
[1747119939274,0.21419425,102710.0,102700.0,0.39657529]
[1747119939508,0.2562303,102710.0,102700.0,0.75677319]
[1747119939704,0.2562303,102710.0,102700.0,0.78105066]
[1747119939937,0.2562303,102710.0,102700.0,0.79078718]
[1747119940093,0.2562303,102710.0,102700.0,0.79078652]
[1747119940300,0.05177125,102710.0,102700.0,0.79078652]
[1747119940497,0.06150721,102710.0,102700.0,0.79078652]
[1747119940718,0.26534082,102710.0,102700.0,0.79078652]
[1747119940920,0.06088186,102710.0,102700.0,0.79078652]
[1747119941534,0.05114609,102710.0,102700.0,0.79078652]
[1747119941749,0.00911061,102710.0,102700.0,0.82228652]
[1747119941968,0.00911061,102710.0,102700.0,1.07367556]
[1747119942816,0.01946887,102720.0,102710.0,0.57847115]
[1747119943042,0.02920369,102720.0,102710.0,0.76063115]
[1747119943289,0.02920369,102720.0,102710.0,0.77111118]
[1747119943510,0.27170429,102730.0,102720.0,0.55417396]
[1747119943511,0.29117223,102730.0,102720.0,0.55417396]
[1747119943743,0.30090648,102730.0,102720.0,0.57364331]
[1747119943971,0.31001529,102730.0,102720.0,0.55417396]
[1747119944163,0.31001529,102730.0,102720.0,0.56465399]
[1747119944362,0.30028151,102730.0,102720.0,0.56465399]
[1747119944588,0.30028151,102730.0,102720.0,0.55491917]
[1747119944909,0.29454745,102730.0,102720.0,0.57438909]
[1747119945131,0.29454745,102730.0,102720.0,0.58412391]
[1747119945840,0.29654745,102730.0,102720.0,0.58412391]
[1747119946261,0.29654745,102730.0,102720.0,0.57438909]
[1747119948332,0.29654745,102730.0,102720.0,0.56465418]
[1747119949166,0.28681329,102730.0,102720.0,0.56465418]
[1747119950053,0.28681329,102730.0,102720.0,0.58412372]
[1747119950276,0.28681329,102730.0,102720.0,0.57438909]
[1747119950485,0.29654726,102730.0,102720.0,0.58412381]
[1747119950651,0.111595,102730.0,102720.0,0.59385834]
[1747119950843,0.31601434,102730.0,102720.0,0.58412381]
[1747119951062,0.30081434,102730.0,102720.0,0.58412381]
[1747119951470,0.31601434,102730.0,102720.0,0.58412381]
[1747119952784,0.31601434,102730.0,102720.0,0.57438909]
[1747119952904,0.31601434,102730.0,102720.0,0.58412391]
[1747119954450,0.28760067,102730.0,102720.0,0.58412391]
[1747119955069,0.27786727,102730.0,102720.0,0.58412391]
[1747119956334,0.26813359,102730.0,102720.0,0.55491917]
[1747119956553,0.26813359,102730.0,102720.0,0.56465408]
[1747119956789,0.26129438,102730.0,102720.0,0.56465408]
[1747119961965,0.25156041,102730.0,102720.0,0.55491917]
[1747119962180,0.25839962,102730.0,102720.0,0.56465418]
[1747119963404,0.25839962,102730.0,102720.0,0.57438909]
[1747119966692,0.25839962,102730.0,102720.0,0.56465399]
[1747119966901,0.25839962,102730.0,102720.0,0.56465418]
[1747119967148,0.25839962,102730.0,102720.0,0.57438909]
[1747119967564,0.25839962,102730.0,102720.0,0.56465418]
[1747119968323,0.25839962,102730.0,102720.0,0.35048003]
[1747119968737,0.24866537,102730.0,102720.0,0.35048003]
[1747119974755,0.24866537,102730.0,102720.0,0.54518407]
[1747119976194,0.24866537,102730.0,102720.0,0.55491927]
[1747119980404,0.23346537,102730.0,102720.0,0.55491927]
[1747119980641,0.22809943,102730.0,102720.0,0.57438919]
[1747119980849,0.22809943,102730.0,102720.0,0.57438938]
[1747119981694,0.24439943,102730.0,102720.0,0.56465437]
[1747119981899,0.23466537,102730.0,102720.0,0.56465437]
[1747119982501,0.21836537,102730.0,102720.0,0.57438919]
[1747119982709,0.21836537,102730.0,102720.0,0.56465437]
[1747119982912,0.21836537,102730.0,102720.0,0.57438938]
[1747119985279,0.23496537,102730.0,102720.0,0.57438938]
[1747119987068,0.21836537,102730.0,102720.0,0.58412429]
[1747119987488,0.21836537,102730.0,102720.0,0.59385911]
[1747119989505,0.21578574,102730.0,102720.0,0.59385911]
[1747119989910,0.21578574,102730.0,102720.0,0.58412429]
[1747119993272,0.21578574,102730.0,102720.0,0.57438938]
[1747119993539,0.21578574,102730.0,102720.0,0.58412429]
[1747119994126,0.21578574,102730.0,102720.0,0.57438938]
[1747119994351,0.23238574,102730.0,102720.0,0.58412429]
[1747119995282,0.21578574,102730.0,102720.0,0.58412429]
[1747120002503,0.23088574,102730.0,102720.0,0.58412429]
[1747120002705,0.23088574,102730.0,102720.0,0.35048003]
[1747120002956,0.41051877,102730.0,102720.0,0.35048003]
[1747120005363,0.24628574,102730.0,102720.0,0.35048003]
[1747120005614,0.24628574,102730.0,102720.0,0.54518407]
[1747120005822,0.24628574,102730.0,102720.0,0.55491927]
[1747120006042,0.24628574,102730.0,102720.0,0.36021523]
[1747120006440,0.23088574,102730.0,102720.0,0.55491927]
[1747120010471,0.23088574,102730.0,102720.0,0.36021523]
[1747120010959,0.23088574,102730.0,102720.0,0.55491927]
[1747120011204,0.23088574,102730.0,102720.0,0.35048003]
[1747120011405,0.23088574,102730.0,102720.0,0.55491917]
[1747120012702,0.04056868,102730.0,102720.0,0.58412324]
[1747120012915,0.04056811,102730.0,102720.0,0.61602324]
[1747120013161,0.04056811,102730.0,102720.0,0.78025627]
[1747120013162,0.05030189,102730.0,102720.0,0.78025627]
[1747120013406,0.05030189,102730.0,102720.0,0.61602324]
[1747120013643,0.05030179,102730.0,102720.0,0.61602324]
[1747120014553,0.06003585,102730.0,102720.0,0.61602324]
[1747120015053,0.06003576,102730.0,102720.0,0.61602324]
[1747120015281,0.06976982,102730.0,102720.0,0.61602324]
[1747120016221,0.06003576,102730.0,102720.0,0.61602324]
[1747120016745,0.02110065,102730.0,102720.0,0.79479712]
[1747120018317,0.03083405,102730.0,102720.0,0.79479712]
[1747120018546,0.02110065,102730.0,102720.0,0.63056409]
[1747120018670,0.02110065,102730.0,102720.0,0.79479712]
[1747120019739,0.01426144,102730.0,102720.0,0.79479712]
[1747120020168,0.01426144,102730.0,102720.0,1.35903015]
[1747120021264,0.01426144,102730.0,102720.0,1.19479712]
[1747120023027,0.006,102730.0,102720.0,1.19479712]
[1747120026395,0.01573359,102730.0,102720.0,1.37800409]
[1747120026626,0.01573359,102730.0,102720.0,1.37804409]
[1747120027244,0.0194376,102730.0,102720.0,1.37804409]
[1747120027447,0.0194376,102730.0,102720.0,1.39364409]
[1747120028704,0.02917109,102730.0,102720.0,1.39364409]
[1747120029582,0.0194376,102730.0,102720.0,1.39364409]
[1747120030124,0.02917109,102730.0,102720.0,1.39364409]
[1747120030344,0.0194376,102730.0,102720.0,1.39364409]
[1747120030784,0.02917109,102730.0,102720.0,1.37804409]
[1747120031000,0.0194376,102730.0,102720.0,1.37804409]
[1747120031183,0.02917119,102730.0,102720.0,1.39384409]
[1747120031421,0.02917109,102730.0,102720.0,1.39384409]
[1747120031636,0.02917109,102730.0,102720.0,1.55807712]
[1747120031861,0.0194376,102730.0,102720.0,1.55807712]
[1747120033608,0.0194376,102730.0,102720.0,1.72231015]
[1747120035829,0.0194376,102730.0,102720.0,2.14291015]
[1747120036665,0.0154376,102730.0,102720.0,2.14291015]
[1747120037099,0.0134376,102730.0,102720.0,2.14291015]
[1747120037519,0.0134376,102730.0,102720.0,2.14391015]
[1747120038358,0.0134376,102730.0,102720.0,2.14891015]
[1747120045317,0.0134376,102730.0,102720.0,2.31314318]
[1747120046408,0.0134376,102730.0,102720.0,2.14891015]
[1747120046620,0.0134376,102730.0,102720.0,2.31314318]
[1747120047001,0.0134376,102730.0,102720.0,2.14891015]
[1747120047416,0.0134376,102730.0,102720.0,2.31314318]
[1747120049324,0.0134376,102730.0,102720.0,2.14891015]
[1747120049526,0.0134376,102730.0,102720.0,2.31314318]
[1747120049930,0.0134376,102730.0,102720.0,2.14891015]
[1747120051136,0.0134376,102730.0,102720.0,3.62470118]
[1747120051337,0.0134376,102730.0,102720.0,3.46046815]
[1747120051538,0.0134376,102730.0,102720.0,3.28339515]
[1747120051740,0.0134376,102730.0,102720.0,3.44762818]
[1747120052182,0.0134376,102730.0,102720.0,3.10861718]
[1747120057694,0.0134376,102730.0,102720.0,3.09771518]
[1747120058300,0.0134376,102730.0,102720.0,2.93348215]
[1747120058493,0.0134376,102730.0,102720.0,3.09771518]
[1747120060526,0.0134376,102730.0,102720.0,2.93348215]
[1747120061041,0.0134376,102730.0,102720.0,3.09771518]
[1747120068000,0.0134376,102730.0,102720.0,3.50811518]
[1747120069257,0.031,102760.0,102750.0,0.74261701]
[1747120069483,0.031,102760.0,102750.0,1.11329701]
[1747120069708,0.031,102760.0,102750.0,1.12361706]
[1747120070086,0.031,102760.0,102750.0,1.52361706]
[1747120070482,0.038,102760.0,102750.0,1.52361706]
[1747120071717,0.042,102760.0,102750.0,1.52361706]
[1747120073870,0.042,102760.0,102750.0,1.53845012]
[1747120074890,0.042,102760.0,102750.0,1.53845012]
[1747120075753,0.042,102760.0,102750.0,1.37421709]
[1747120075959,0.042,102760.0,102750.0,1.53845012]
[1747120076947,0.042,102760.0,102750.0,1.54828893]
[1747120078884,0.0265,102760.0,102750.0,1.54828893]
[1747120080015,0.011,102760.0,102750.0,1.54828893]
[1747120080214,0.0269,102760.0,102750.0,1.54828893]
[1747120081652,0.0434,102760.0,102750.0,1.54828893]
[1747120082485,0.0269,102760.0,102750.0,1.54828893]
[1747120083092,0.0432,102760.0,102750.0,1.17760893]
[1747120083304,0.0432,102760.0,102750.0,1.55272893]
[1747120083858,0.0392,102760.0,102750.0,1.55272893]
[1747120084061,0.0322,102760.0,102750.0,1.3884959]
[1747120084260,0.0352,102760.0,102750.0,1.55272893]
[1747120085346,0.0352,102760.0,102750.0,1.3884959]
[1747120085608,0.0352,102760.0,102750.0,1.55272893]
[1747120086813,0.0352,102760.0,102750.0,1.0133759]
[1747120087019,0.0352,102760.0,102750.0,1.3884559]
[1747120087725,0.0352,102760.0,102750.0,1.0484959]
[1747120087861,0.0352,102760.0,102750.0,1.3884959]
[1747120090668,0.0352,102760.0,102750.0,1.55280893]
[1747120091078,0.0352,102760.0,102750.0,1.55276893]
[1747120092509,0.0352,102760.0,102750.0,1.55268893]
[1747120093334,0.0352,102760.0,102750.0,1.55260893]
[1747120095357,0.0352,102760.0,102750.0,1.17760893]
[1747120095556,0.0352,102760.0,102750.0,1.55260893]
[1747120099171,0.0196,102760.0,102750.0,1.55260893]
[1747120099381,0.003,102760.0,102750.0,1.55260893]
[1747120104326,0.0184,102760.0,102750.0,1.55260893]
[1747120104560,0.0342,102760.0,102750.0,1.3883759]
[1747120104759,0.0342,102760.0,102750.0,1.55260893]
[1747120107737,0.003,102760.0,102750.0,1.3883759]
[1747120107958,0.018,102760.0,102750.0,1.55260893]
[1747120108357,0.003,102760.0,102750.0,1.55260893]
[1747120108986,0.0193,102760.0,102750.0,1.55260893]
[1747120109627,0.003,102760.0,102750.0,1.55260893]
[1747120112849,0.0195,102760.0,102750.0,1.55184893]
[1747120113099,0.0359,102760.0,102750.0,1.55184893]
[1747120114102,0.04563056,102760.0,102750.0,0.9875759]
[1747120115387,0.43368522,102760.0,102750.0,0.22453832]
[1747120115596,0.26945219,102760.0,102750.0,0.42151049]
[1747120115800,0.26945219,102760.0,102750.0,0.78097435]
[1747120116022,0.06509233,102760.0,102750.0,0.79070604]
[1747120116236,0.26945181,102760.0,102750.0,0.79070604]
[1747120116403,0.27918397,102760.0,102750.0,0.78097435]
[1747120116651,0.27918397,102760.0,102750.0,0.79070614]
[1747120117177,0.27918397,102760.0,102750.0,0.78097435]
[1747120117397,0.25972125,102760.0,102750.0,0.79070614]
[1747120117618,0.26945256,102760.0,102750.0,0.64070547]
[1747120117838,0.26945256,102760.0,102750.0,0.64923152]
[1747120118274,0.0650928,102760.0,102750.0,0.64923152]
[1747120118518,0.07482402,102760.0,102750.0,0.64923152]
[1747120119812,0.27918359,102760.0,102750.0,0.64923152]
[1747120120113,0.27918359,102760.0,102750.0,0.64910388]
[1747120120114,0.27918416,102760.0,102750.0,0.64910388]
[1747120120312,0.26945323,102760.0,102750.0,0.639372]
[1747120120523,0.25972182,102760.0,102750.0,0.64910369]
[1747120122407,0.05536225,102760.0,102750.0,0.64910369]
[1747120123005,0.05536178,102760.0,102750.0,0.64910369]
[1747120123210,0.065093,102760.0,102750.0,0.64910369]
[1747120124497,0.26945257,102760.0,102750.0,0.639372]
[1747120124708,0.065093,102760.0,102750.0,0.64910369]
[1747120124920,0.05536178,102760.0,102750.0,0.64910369]
[1747120125103,0.065093,102760.0,102750.0,0.64910369]
[1747120125435,0.05536178,102760.0,102750.0,0.64910369]
[1747120128667,0.25972126,102760.0,102750.0,0.62964059]
[1747120128877,0.25972126,102760.0,102750.0,0.63950021]
[1747120129088,0.065093,102760.0,102750.0,0.58210135]
[1747120129511,0.26945267,102760.0,102750.0,0.58210135]
[1747120129720,0.065093,102760.0,102750.0,0.58210135]
[1747120129894,0.25972126,102760.0,102750.0,0.58210135]
[1747120130121,0.26945267,102760.0,102750.0,0.58210135]
[1747120130329,0.065093,102760.0,102750.0,0.58210135]
[1747120133335,0.065093,102760.0,102750.0,0.58210145]
[1747120133336,0.26945257,102760.0,102750.0,0.58210145]
[1747120133566,0.065093,102760.0,102750.0,0.59183314]
[1747120134432,0.05536178,102760.0,102750.0,0.59183314]
[1747120134813,0.065093,102760.0,102750.0,0.59183314]
[1747120135974,0.05536178,102760.0,102750.0,0.59183314]
[1747120136169,0.065093,102760.0,102750.0,0.59183314]
[1747120136527,0.05536178,102760.0,102750.0,0.59183314]
[1747120137227,0.065093,102760.0,102750.0,0.59183314]
[1747120137488,0.05536178,102760.0,102750.0,0.59183314]
[1747120139368,0.0650929,102760.0,102750.0,0.59183314]
[1747120139586,0.05536178,102760.0,102750.0,0.59183314]
[1747120140569,0.01273075,102760.0,102750.0,0.59183314]
[1747120140781,0.02246178,102760.0,102750.0,0.59183314]
[1747120140989,0.03876178,102760.0,102750.0,0.59183314]
[1747120141190,0.25902126,102760.0,102750.0,0.57236966]
[1747120141437,0.24929051,102760.0,102750.0,0.55290551]
[1747120141641,0.24929051,102760.0,102750.0,0.34852605]
[1747120141847,0.23955948,102760.0,102750.0,0.35825841]
[1747120142132,0.23955948,102760.0,102750.0,0.55290561]
[1747120142523,0.22982826,102760.0,102750.0,0.55290561]
[1747120142818,0.22982826,102760.0,102750.0,0.56263778]
[1747120143177,0.22982826,102760.0,102750.0,0.57236985]
[1747120143364,0.24929041,102760.0,102750.0,0.58210183]
[1747120143573,0.25902182,102760.0,102750.0,0.59183371]
[1747120144251,0.25902182,102760.0,102750.0,0.58210183]
[1747120144567,0.25902182,102760.0,102750.0,0.59183371]
[1747120146314,0.24929041,102760.0,102750.0,0.59183304]
[1747120146511,0.25902172,102760.0,102750.0,0.59183314]
[1747120146729,0.26875218,102760.0,102750.0,0.59183266]
[1747120148124,0.27848349,102760.0,102750.0,0.58210097]
[1747120149843,0.27848349,102760.0,102750.0,0.59183266]
[1747120150314,0.26875218,102760.0,102750.0,0.59183266]
[1747120150787,0.27848349,102760.0,102750.0,0.59183266]
[1747120151413,0.27848349,102760.0,102750.0,0.58210097]
[1747120151623,0.26875218,102760.0,102750.0,0.59183266]
[1747120152593,0.27848359,102760.0,102750.0,0.57236918]
[1747120153034,0.27848349,102760.0,102750.0,0.58210097]
[1747120154937,0.26875218,102760.0,102750.0,0.58210097]
[1747120155146,0.27848349,102760.0,102750.0,0.58210097]
[1747120156611,0.26875218,102760.0,102750.0,0.58210097]
[1747120156838,0.27848349,102760.0,102750.0,0.58210097]
[1747120158027,0.05466158,102760.0,102750.0,0.59183266]
[1747120158243,0.0643927,102760.0,102750.0,0.59183266]
[1747120158437,0.01273075,102760.0,102750.0,0.59183266]
[1747120159490,0.02246168,102760.0,102750.0,0.59183266]
[1747120160565,0.03219271,102760.0,102750.0,0.59183266]
[1747120161164,0.02246168,102760.0,102750.0,0.59183266]
[1747120162186,0.01273075,102760.0,102750.0,0.59183266]
[1747120162446,0.02246178,102760.0,102750.0,0.59183266]
[1747120162718,0.25225257,102760.0,102750.0,0.57236976]
[1747120162922,0.25892182,102760.0,102750.0,0.56263778]
[1747120163119,0.25892182,102760.0,102750.0,0.57236985]
[1747120163494,0.25892182,102760.0,102750.0,0.58210183]
[1747120163896,0.25892182,102760.0,102750.0,0.59183371]
[1747120164289,0.25892182,102760.0,102750.0,0.59183314]
[1747120164529,0.25892182,102760.0,102750.0,0.57236947]
[1747120165238,0.25892182,102760.0,102750.0,0.56263749]
[1747120165752,0.25892182,102760.0,102750.0,0.57236947]
[1747120165960,0.26804638,102760.0,102750.0,0.58210135]
[1747120166221,0.27488987,102760.0,102750.0,0.58210135]
[1747120166440,0.27488987,102760.0,102750.0,0.57236947]
[1747120166779,0.27488987,102760.0,102750.0,0.58210135]
[1747120166975,0.28462128,102760.0,102750.0,0.57236947]
[1747120169210,0.28462128,102760.0,102750.0,0.56263758]
[1747120169441,0.28462128,102760.0,102750.0,0.57236956]
[1747120170054,0.28462128,102760.0,102750.0,0.56263758]
[1747120170295,0.28462128,102760.0,102750.0,0.57236956]
[1747120170518,0.26515913,102760.0,102750.0,0.34852605]
[1747120172819,0.26515913,102760.0,102750.0,0.35825841]
[1747120173019,0.26515913,102760.0,102750.0,0.34852605]
[1747120173223,0.42939215,102760.0,102750.0,0.34852605]
[1747120174047,0.58389387,102760.0,102750.0,0.34588515]
[1747120174271,0.58389387,102760.0,102750.0,0.00588515]
[1747120174449,0.59359583,102760.0,102750.0,0.00588515]
[1747120174668,0.23477937,102750.0,102740.0,0.34]
[1747120174851,0.3990124,102750.0,102740.0,0.34]
[1747120175052,0.41498054,102750.0,102740.0,0.34]
[1747120176323,0.41998054,102750.0,102740.0,0.34]
[1747120176526,0.26547958,102750.0,102740.0,0.34]
[1747120176757,0.41998054,102750.0,102740.0,0.34]
[1747120181417,0.25574751,102750.0,102740.0,0.34]
[1747120181614,0.41998054,102750.0,102740.0,0.34]
[1747120181820,0.41313706,102750.0,102740.0,0.34]
[1747120182972,0.25574751,102750.0,102740.0,0.53466614]
[1747120183182,0.25574751,102750.0,102740.0,0.34]
[1747120183393,0.23350403,102750.0,102740.0,0.34]
[1747120183597,0.23350403,102750.0,102740.0,0.3497333]
[1747120183803,0.23350403,102750.0,102740.0,0.34]
[1747120184032,0.23348288,102750.0,102740.0,0.34]
[1747120184875,0.24848288,102750.0,102740.0,0.34]
[1747120185464,0.19466614,102740.0,102730.0,0.60425678]
[1747120185684,0.21413151,102740.0,102730.0,0.59452319]
[1747120185895,0.22386453,102740.0,102730.0,0.60425687]
[1747120186112,0.22386424,102740.0,102730.0,0.61399046]
[1747120186967,0.22486424,102740.0,102730.0,0.61399046]
[1747120187171,0.22586424,102740.0,102730.0,0.61399046]
[1747120187385,0.03119782,102740.0,102730.0,0.61399046]
[1747120187803,0.04093074,102740.0,102730.0,0.61399046]
[1747120188335,0.23559688,102740.0,102730.0,0.61399046]
[1747120188563,0.23559688,102740.0,102730.0,0.77822349]
[1747120189394,0.02146509,102740.0,102730.0,0.77822349]
[1747120189635,0.03119792,102740.0,102730.0,0.77822349]
[1747120190281,0.02146509,102740.0,102730.0,0.77822349]
[1747120190512,0.03119782,102740.0,102730.0,0.77822349]
[1747120191208,0.04093065,102740.0,102730.0,0.77822349]
[1747120192287,0.03119782,102740.0,102730.0,0.77822349]
[1747120192512,0.03119782,102740.0,102730.0,0.61399046]
[1747120192724,0.04093074,102740.0,102730.0,0.77822349]
[1747120192942,0.03119782,102740.0,102730.0,0.77822349]
[1747120193151,0.04093065,102740.0,102730.0,0.77822349]
[1747120196861,0.01173245,102740.0,102730.0,0.77822349]
[1747120197080,0.002,102740.0,102730.0,0.77822349]
[1747120198510,0.002,102740.0,102730.0,1.17822349]
[1747120198751,0.01173254,102740.0,102730.0,1.17822349]
[1747120199593,0.002,102740.0,102730.0,1.17822349]
[1747120199808,0.01173254,102740.0,102730.0,1.17822349]
[1747120200013,0.01173254,102740.0,102730.0,0.77822349]
[1747120203924,0.002,102740.0,102730.0,0.77822349]
[1747120204141,0.01173245,102740.0,102730.0,0.77822349]
[1747120205203,0.01173245,102740.0,102730.0,0.96806349]
[1747120205421,0.002,102740.0,102730.0,0.96806349]
[1747120208675,0.002,102740.0,102730.0,0.98260434]
[1747120209676,0.002,102740.0,102730.0,1.38260434]
[1747120209849,0.02146509,102740.0,102730.0,1.38260434]
[1747120210054,0.03119782,102740.0,102730.0,1.38260434]
[1747120210257,0.02146499,102740.0,102730.0,1.38260434]